Cogmind - Beta 12 @@@ ROGUE MODE // 2023.10.18 @ 19:12:51 Player: Figgis Result: Destroyed by G-47 Trooper with Particle Gun Performance ------------- Evolutions (2) 1000 Regions Visited (7) 1400 Robots Destroyed (46) 230 Value Destroyed (1546) 1546 Prototype IDs (26) 520 Alien Tech Used (0) 0 Bonus (653) 653 TOTAL SCORE: 5349 Bonus ------- High Alert Combat Kills 35 Follower Combat Kills 444 Aligned with FarCom 300 Friendly Fire -126 Cogmind --------- Core Integrity 0/550 Matter 288/300 Energy 100/100 System Corruption 9% Temperature Cool (9) Movement Walking (260) Ox2 Location -8/Materials Parts ------- > --- POWER (1) -------- (None) > --- PROPULSION (3) --- Carbon-fiber Leg > --- UTILITY (5) ------ High-capacity Storage Unit Weight Redist. System Targeting Computer > --- WEAPON (2) ------- (None) > --- INVENTORY (20) --- Aluminum Leg Carbon-fiber Leg Improved Heat Sink Advanced Weapon Cycler Utility Shielding Army-in-a-Box (30/30) Light EM Pulse Cannon Assault Cannon Mini Grenade Launcher Peak State ------------ > --- POWER ------------ Heavy Ion Engine > --- PROPULSION ------- Aluminum Leg Carbon-fiber Leg > --- UTILITY ---------- Improved Heat Sink High-capacity Storage Unit Experimental Sensor Array Targeting Computer > --- WEAPON ----------- Latent Energy Streamer 8R-AWN's Boregun > --- INVENTORY -------- Heavy Ion Engine Light Angular Momentum Engine Light Treads Aluminum Leg Aluminum Leg Advanced Weapon Cycler Utility Shielding Army-in-a-Box Particle Cannon Improved Light Cannon Mini Grenade Launcher Deploy-a-Sentry Deploy-a-Sentry Deploy-a-Sentry [Rating: 51] Favorites ----------- Power Heavy Ion Engine Engine Heavy Ion Engine Propulsion Light Treads Treads Light Treads Leg Aluminum Leg Utility Targeting Computer Device Improved Heat Sink Storage High-capacity Storage Unit Processor Targeting Computer Protection Utility Shielding Weapon Assault Rifle Energy Gun Heavy Laser Energy Cannon Latent Energy Streamer Ballistic Gun Assault Rifle Ballistic Cannon Improved Light Cannon Launcher Mini Grenade Launcher Build | -11 -10 -10 -9 -9 -9 -8 -8 ------- Run | Jun Mat Min Mat Min Exi Min Mat Slots Evolved 4 | . . . 2 . . . 2 Power . | . . . . . . . . Propulsion 1 | . . . . . . . 1 Utility 3 | . . . 2 . . . 1 Weapon . | . . . . . . . . Parts Attached 56 | 3 8 2 3 2 14 7 17 Power 7 | 1 2 . . . 1 . 3 Engine 7 | 1 2 . . . 1 . 3 Core . | . . . . . . . . Reactor . | . . . . . . . . Propulsion 19 | 2 1 . 2 . 4 2 8 Treads 6 | 2 1 . 2 . 1 . . Leg 13 | . . . . . 3 2 8 Wheel . | . . . . . . . . Hover . | . . . . . . . . Flight . | . . . . . . . . Utility 12 | . 3 1 1 1 3 1 2 Device 6 | . . . . . 3 1 2 Storage 4 | . 2 1 . 1 . . . Processor 1 | . 1 . . . . . . Hackware . | . . . . . . . . Protection 1 | . . . 1 . . . . Artifact . | . . . . . . . . Weapon 18 | . 2 1 . 1 6 4 4 Energy Gun 2 | . . . . . . . 2 Energy Cannon 5 | . . . . . 1 3 1 Ballistic Gun 5 | . 2 1 . . 2 . . Ballistic Cannon 4 | . . . . 1 1 1 1 Launcher 2 | . . . . . 2 . . Special Weapon . | . . . . . . . . Impact Weapon . | . . . . . . . . Slashing Weapon . | . . . . . . . . Piercing Weapon . | . . . . . . . . Special Melee Weapon . | . . . . . . . . Unidentified Prototypes 3 | . 1 . . . 2 . . Parts Lost 28 | . . . . . 9 3 16 Power 4 | . . . . . 1 . 3 Propulsion 10 | . . . . . 3 1 6 Utility 6 | . . . . . 2 1 3 Weapon 8 | . . . . . 3 1 4 Highest Loss Streak 8 | . . . . . 8 1 5 To Critical Strikes 3 | . . . . . 3 . . Average Slot Usage (%) 93 | . 98 100 86 88 89 98 91 Engine 11 | . 13 14 11 11 10 11 7 Treads 12 | . 27 28 20 22 3 . . Leg 11 | . . . . . 18 21 26 Device 8 | . . . . . 9 21 25 Storage 12 | . 14 14 11 11 12 11 9 Processor 11 | . 12 14 11 11 11 11 9 Protection 2 | . . . 11 11 1 . . Energy Cannon 1 | . . . . . . 10 3 Ballistic Gun 16 | . 28 28 22 20 10 11 3 Ballistic Cannon 3 | . . . . 1 9 . . Naked Turns . | . . . . . . . . Heaviest Build 66 | 3 32 52 53 59 59 66 66 Greatest Support 49 | 3 40 40 40 40 40 25 49 Greatest Overweight (x) 18 | . . 1 1 1 18 3 2 Average Overweight (x) 1 | . . . 1 1 1 2 1 Largest Inventory Capacity 20 | 5 15 20 20 20 20 20 20 Average Capacity 18 | 5 8 16 20 20 20 20 20 Most Carried 20 | 5 10 15 17 20 20 20 20 Average Carried 15 | 3 5 13 15 18 17 19 15 Final Capacity 20 | 5 15 20 20 20 20 20 20 Final Carried 20 | 5 10 15 17 20 19 18 14 Class Distribution -------------------- 87% | Mutant 12% | Scavenger-Mutant Dominant Class ---------------- Mutant | -10/Materials Mutant | -10/Mines Mutant | -9/Materials Mutant | -9/Mines Mutant | -9/Exiles Mutant | -8/Mines Scavenger-Mutant | -8/Materials Resources | -11 -10 -10 -9 -9 -9 -8 -8 ----------- Run | Jun Mat Min Mat Min Exi Min Mat Matter Collected 2015 | 184 211 243 30 62 580 375 330 Remotely . | . . . . . . . . Salvage Created 2031 | . 291 294 . . 98 630 718 Parts 107 | . 16 10 . . 1 34 46 Haulers Intercepted 1 | . . . . . . . 1 Recyclers Shooed . | . . . . . . . . Parts Field Recycled . | . . . . . . . . Retrieved Matter . | . . . . . . . . Parts Self-Destructed . | . . . . . . . . Prevented . | . . . . . . . . Kills | -11 -10 -10 -9 -9 -9 -8 -8 ------- Run | Jun Mat Min Mat Min Exi Min Mat Combat Hostiles Destroyed 39 | . 6 4 . 1 5 13 10 Guns 29 | . 6 4 . 1 2 9 7 Cannons 4 | . . . . . 2 1 1 AOE 5 | . . . . . 1 3 1 Classes Destroyed 11 | . 2 2 . 1 . 2 4 Worker 1 | . . . . . . . 1 Builder 3 | . . . . . . . 3 Hauler 1 | . . . . . . . 1 Recycler 1 | . . 1 . . . . . Mechanic 1 | . . 1 . . . . . Watcher 4 | . 2 . . . . . 2 Swarmer 4 | . . . . . . 4 . Grunt 27 | . 6 4 . . 1 8 8 Duelist 1 | . . . . . . 1 . Sentry 2 | . . . . . . . 2 Assembled 5 | . . . . 1 4 . . Best Kill Streak 8 | . 4 4 . 1 4 4 8 Combat Bots Only 5 | . 4 2 . 1 4 4 5 Max Kills in Single Turn 3 | . 1 1 . 1 2 3 1 Gunslinging . | . . . . . . . . Exploded 3 | . . . . . 1 3 1 Melee . | . . . . . . . . Uniques/NPCs Destroyed 1 | . . . . . 1 . . 8R-AWN (-9/Exiles) Combat | -11 -10 -10 -9 -9 -9 -8 -8 -------- Run | Jun Mat Min Mat Min Exi Min Mat Damage Taken 4080 | . 337 240 107 . 1008 368 2020 Core 835 | . 70 26 14 . 129 43 553 Absorbed by Shields . | . . . . . . . . Redirected to Shielding 23 | . . . . . 23 . . Regen/Repaired (Parts) 393 | . 117 . 190 . . . 86 Core Remaining (%) 71 | 100 . 61 . . . 53 . Volleys Fired 195 | . 29 14 3 1 68 30 50 Largest 2 | . 2 2 2 2 2 2 2 Hottest 107 | . 40 44 44 44 107 98 99 Shots Fired 334 | . 58 28 6 2 129 43 68 Gun 239 | . 58 28 6 2 58 30 57 Cannon 86 | . . . . . 62 13 11 Launcher 9 | . . . . . 9 . . Special . | . . . . . . . . Kinetic 270 | . 58 28 6 2 115 30 31 Thermal 47 | . . . . . 5 9 33 Explosive 9 | . . . . . 9 . . Electromagnetic 8 | . . . . . . 4 4 Robot Hit Streak 9 | . 8 5 5 4 7 7 9 Robot Miss Streak 4 | . 3 3 3 . 4 4 4 Penetration Max 1 | . . . . . . 1 1 Secondary Targets 1 | . . 1 . . . . . Max Gunslinging Chain 1 | . . 1 . . . . . Shots Hit Robots 208 | . 38 21 4 1 74 26 44 Core Hits 105 | . 17 12 1 1 19 20 35 Critical Kills 11 | . . . . . . 6 5 Critical Parts Destroyed 10 | . . . . . 2 1 7 Critical Strikes 34 | . . . . . 14 7 13 Burn 1 | . . . . . . . 1 Destroy 32 | . . . . . 13 7 12 Blast 1 | . . . . . 1 . . Melee Attacks . | . . . . . . . . Impact . | . . . . . . . . Slashing . | . . . . . . . . Piercing . | . . . . . . . . Sneak Attacks . | . . . . . . . . Combat Hostiles . | . . . . . . . . Follow-up Attacks . | . . . . . . . . Damage Inflicted 4565 | . 475 313 78 13 1538 818 1330 Guns 2603 | . 475 313 78 13 493 405 826 Cannons 1178 | . . . . . 880 149 149 Explosions 784 | . . . . . 165 264 355 Melee . | . . . . . . . . Ramming . | . . . . . . . . Kinetic 3095 | . 475 313 78 13 1328 405 483 Thermal 663 | . . . . . 45 142 476 Explosive 165 | . . . . . 165 . . Electromagnetic 642 | . . . . . . 271 371 Impact . | . . . . . . . . Slashing . | . . . . . . . . Piercing . | . . . . . . . . Highest Corruption 9 | . 2 2 . . . 7 9 Average Corruption 3 | . 2 2 . . . 1 7 Corruption Purged . | . . . . . . . . Corruption Blocked . | . . . . . . . . Effects 55 | . 9 15 . . . 6 25 Message Errors 13 | . 4 4 . . . 1 4 Matter Fused 12 | . 2 5 . . . 1 4 Heat Flow Errors 9 | . 2 2 . . . 1 4 Energy Discharges 7 | . . 1 . . . 1 5 Parts Rejected 1 | . . . . . . . 1 Data Loss (minor) 6 | . 1 1 . . . 1 3 Data Loss (major) 3 | . . 2 . . . . 1 Misfires 2 | . . . . . . 1 1 Alerts 1 | . . . . . . . 1 Weapon Failures 1 | . . . . . . . 1 Overload Shots . | . . . . . . . . Overflow Damage 73 | . . . . . 46 27 . Projectiles 29 | . . . . . 29 . . Explosions 44 | . . . . . 17 27 . Melee . | . . . . . . . . Knockbacks 13 | . . . . . 13 . . Impact . | . . . . . . . . Kinetic 13 | . . . . . 13 . . Secondary . | . . . . . . . . Self-Inflicted Damage 185 | . . . 66 . 29 90 . Shots 5 | . . . 1 . 2 2 . Rammed 3 | . . 3 . . . . . Targets Rammed 3 | . . 3 . . . . . Kicked . | . . . . . . . . Crushed . | . . . . . . . . Highest Temperature 248 | . 248 211 1 . 78 132 231 Average Temperature 61 | . 138 53 1 . 20 18 41 Received Heat Transfer 1649 | . 207 156 9 . 80 144 1053 Effects 1 | . . . . . . . 1 Interference 1 | . . . . . . . 1 Siege Activations . | . . . . . . . . Robots Corrupted . | . . . . . . . . Combat Hostiles . | . . . . . . . . Parts Fried 2 | . . . . . . . 2 Impact Corruptions . | . . . . . . . . Robots Melted 1 | . . . . . . . 1 Combat Hostiles 1 | . . . . . . . 1 Parts Melted 1 | . . . . . . . 1 Heat Transferred 1350 | . . . . . 92 259 999 Parts Sabotaged . | . . . . . . . . Parts Stolen . | . . . . . . . . Parts Stripped . | . . . . . . . . Power Chain Reactions . | . . . . . . . . Missiles Intercepted . | . . . . . . . . Latent Energy Used 801 | . . . . . . 374 427 LE Corruption 16 | . . . . . . 7 9 Alert | -11 -10 -10 -9 -9 -9 -8 -8 ------- Run | Jun Mat Min Mat Min Exi Min Mat Peak Influence 560 | . 161 237 194 75 . 294 560 Initial 75 | . . 62 4 75 . . 55 Average 108 | . 82 87 107 32 . 61 351 Maximum Alert Level 2 | . . 1 . . . 1 2 Low Security (%) 87 | 100 100 95 100 100 . 97 19 Level 1 8 | . . 4 . . . 2 51 Level 2 4 | . . . . . . . 29 Level 3 . | . . . . . . . . Level 4 . | . . . . . . . . Level 5 . | . . . . . . . . High Security . | . . . . . . . . Max Security . | . . . . . . . . Squads Dispatched 6 | . 1 1 . . . . 4 Investigation 1 | . . . . . . . 1 Extermination . | . . . . . . . . Reinforcement 4 | . 1 . . . . . 3 Assault 1 | . . 1 . . . . . Garrison . | . . . . . . . . Intercept . | . . . . . . . . Searches Triggered . | . . . . . . . . Construction Impeded 2 | . . . . . . . 2 Haulers Reinforced . | . . . . . . . . Active Scanning Responses . | . . . . . . . . Cargo Convoy Interrupts . | . . . . . . . . Stealth | -11 -10 -10 -9 -9 -9 -8 -8 --------- Run | Jun Mat Min Mat Min Exi Min Mat Distress Signals 4 | . 1 . . . . . 3 Communications Jammed . | . . . . . . . . Distress Signals . | . . . . . . . . Times Spotted 78 | . 13 8 1 2 8 13 33 Peak Tracking Total 11 | . 5 3 1 1 8 4 11 Tactical Retreats 8 | . 1 . . . . 1 6 Traps | -11 -10 -10 -9 -9 -9 -8 -8 ------- Run | Jun Mat Min Mat Min Exi Min Mat Traps Triggered . | . . . . . . . . Indirectly . | . . . . . . . . Trap Hack Attempts . | . . . . . . . . Triggered . | . . . . . . . . Disarmed . | . . . . . . . . Reprogrammed . | . . . . . . . . Reused 4 | . . . . . 4 . . Traps Extracted . | . . . . . . . . Installed 4 | . . . . . 4 . . Triggered . | . . . . . . . . Most Traps Carried 4 | . . 4 4 4 4 . . Machines | -11 -10 -10 -9 -9 -9 -8 -8 ---------- Run | Jun Mat Min Mat Min Exi Min Mat Machines Disabled 17 | . . . 1 . 8 2 6 Max in Single Turn 2 | . . . 1 . 1 1 2 Machines Repaired . | . . . . . . . . Machines Sabotaged . | . . . . . . . . Overloaded Fab Kills . | . . . . . . . . Hacking | -11 -10 -10 -9 -9 -9 -8 -8 --------- Run | Jun Mat Min Mat Min Exi Min Mat Machines Accessed 8 | . 5 . 1 . 1 . 1 Terminals 4 | . 4 . . . . . . Fabricators . | . . . . . . . . Repair Stations 3 | . 1 . 1 . . . 1 Recycling Units . | . . . . . . . . Scanalyzers . | . . . . . . . . Garrison Access . | . . . . . . . . Total Hacks 21 | . 11 . 5 . 1 . 4 Successful 14 | . 6 . 4 . 1 . 3 Failed 6 | . 4 . 1 . . . 1 Catastrophic 2 | . 2 . . . . . . Database Lockouts 1 | . 1 . . . . . . Manual 6 | . 5 . . . 1 . . Terminals 8 | . 8 . . . . . . Fabricators . | . . . . . . . . Repair Stations 12 | . 3 . 5 . . . 4 Recycling Units . | . . . . . . . . Scanalyzers . | . . . . . . . . Garrison Access . | . . . . . . . . Terminal Hacks 5 | . 4 . . . 1 . . Record 1 | . 1 . . . . . . Robot Analysis 1 | . 1 . . . . . . Emergency Access Points 1 | . 1 . . . . . . Locate Traps 1 | . 1 . . . . . . EX-Prototype ID Bank 1 | . . . . . 1 . . Fabricator Hacks . | . . . . . . . . Repair Station Hacks 9 | . 2 . 4 . . . 3 Scan Component 5 | . 1 . 2 . . . 2 Repair 4 | . 1 . 2 . . . 1 Recycling Unit Hacks . | . . . . . . . . Scanalyzer . | . . . . . . . . Garrison Access Hacks . | . . . . . . . . Unauthorized Hacks . | . . . . . . . . Terminals . | . . . . . . . . Fabricators . | . . . . . . . . Repair Stations . | . . . . . . . . Recycling Units . | . . . . . . . . Scanalyzers . | . . . . . . . . Garrison Access . | . . . . . . . . Data Cores Recovered . | . . . . . . . . Used . | . . . . . . . . Hacking Detections 5 | . 4 . . . . . 1 Full Trace Events . | . . . . . . . . Feedback Events . | . . . . . . . . Feedback Blocked . | . . . . . . . . Robot Schematics Acquired . | . . . . . . . . Robots Built . | . . . . . . . . Authchips . | . . . . . . . . Time . | . . . . . . . . Total Robot Build Rating . | . . . . . . . . Part Schematics Acquired . | . . . . . . . . Parts Built . | . . . . . . . . Authchips . | . . . . . . . . Time . | . . . . . . . . Total Part Build Rating . | . . . . . . . . Parts Repaired 4 | . 1 . 2 . . . 1 Time 131 | . 26 . 52 . . . 53 Parts Recycled . | . . . . . . . . Recycled Matter . | . . . . . . . . Retrieved Matter . | . . . . . . . . Retrieved Components . | . . . . . . . . Parts Scanalyzed . | . . . . . . . . Part Schematics Acquired . | . . . . . . . . Parts Damaged . | . . . . . . . . Bothacking | -11 -10 -10 -9 -9 -9 -8 -8 ------------ Run | Jun Mat Min Mat Min Exi Min Mat Used RIF Installer . | . . . . . . . . Robots Hacked . | . . . . . . . . Non-combat . | . . . . . . . . Combat . | . . . . . . . . Robot Hacks Applied . | . . . . . . . . Relay Couplers Released . | . . . . . . . . Fabnet Peak Effective % . | . . . . . . . . Robots Rewired . | . . . . . . . . Allies Hacked . | . . . . . . . . Hacks Repelled . | . . . . . . . . Allies | -11 -10 -10 -9 -9 -9 -8 -8 -------- Run | Jun Mat Min Mat Min Exi Min Mat Total Allies 4 | . . 4 . . . . . Largest Group 4 | . . 4 4 2 2 . . Highest-Rated Group 71 | . . 71 71 39 39 . . Highest-Rated Ally 31 | . . 31 31 31 31 . . Total Orders . | . . . . . . . . Ally Attacks 53 | . . 14 22 2 2 . 13 Total Damage 1234 | . . 246 262 21 22 . 683 Kills 21 | . . 6 6 1 1 . 7 Allies Corrupted . | . . . . . . . . Allies Melted 1 | . . . . . . . 1 Turrets Deployed 2 | . . . . . . . 2 Intel | -11 -10 -10 -9 -9 -9 -8 -8 ------- Run | Jun Mat Min Mat Min Exi Min Mat Robot Analysis Total 1 | . 1 . . . . . . Derelict Logs Recovered 1 | . . . . 1 . . . Drone Launches . | . . . . . . . . Drone Recoveries . | . . . . . . . . Exploration | -11 -10 -10 -9 -9 -9 -8 -8 ------------- Run | Jun Mat Min Mat Min Exi Min Mat Turns Passed 7444 | 30 723 1173 342 971 2667 873 665 Spaces Moved 2825 | 38 345 618 114 396 811 287 216 Core 44 | 38 5 . . . 1 . . Treads 1652 | . 340 618 114 396 184 . . Legs 1129 | . . . . . 626 287 216 Wheels . | . . . . . . . . Hover . | . . . . . . . . Flight . | . . . . . . . . Fastest Speed 50 | 50 50 160 240 240 240 260 190 Average Speed 217 | 50 158 174 240 240 256 266 197 Slowest Speed 950 | 50 160 240 240 240 950 330 260 Overloaded Moves . | . . . . . . . . Propulsion Burnouts . | . . . . . . . . Robots Hopped . | . . . . . . . . Cave-ins Triggered . | . . . . . . . . Exploration Rate (%) 51 | 3 82 94 15 85 45 60 28 Regions Visited 7 Branch Regions 4 Pre-discovered Areas . | . . . . . . . . Known Exits Taken . | . . . . . . . . Unknown Exits Taken 7 | 1 1 1 1 1 1 1 . Scrap Searched 2 | . . 1 . 1 . . . Spaces Dug . | . . . . . . . . Terrain Destroyed 199 | . . . 24 . 57 43 75 Melee . | . . . . . . . . Projectile 25 | . . . . . 11 11 3 AOE 173 | . . . 24 . 45 32 72 Terrain Rammed . | . . . . . . . . Walls Destroyed . | . . . . . . . . Machines Disabled . | . . . . . . . . Actions | -11 -10 -10 -9 -9 -9 -8 -8 --------- Run | Jun Mat Min Mat Min Exi Min Mat Total 3796 | 47 465 682 178 415 1269 354 386 Wait 631 | . 66 36 52 12 350 27 88 Move 2818 | 37 344 617 113 395 810 286 216 Hop . | . . . . . . . . Pick Up 64 | 7 13 7 6 4 13 2 12 Fast Attach 4 | 1 1 . . 1 . 1 . Attach 34 | 2 5 . 3 . 10 2 12 Detach . | . . . . . . . . Swap 18 | . 2 2 . 1 4 4 5 Drop 25 | . 5 3 1 1 10 2 3 Fire 195 | . 29 14 3 1 68 30 50 Melee . | . . . . . . . . Ram . | . . . . . . . . Kick . | . . . . . . . . Crush 3 | . . 3 . . . . . Escape Stasis . | . . . . . . . . Rewire . | . . . . . . . . Trap 4 | . . . . . 4 . . Miscellaneous . | . . . . . . . . Route ------- -11/Junkyard -10/Materials (discovered 4 exits: *Mat x2 / [*Min x2]) -10/Mines -9/Materials -9/Mines (discovered 2 exits: *Mat / *Exi) -9/Exiles -8/Mines -8/Materials History --------- Turn | Location | Event 19 | -11/Junkyard | Discovered new exit (range 16) 31 | -11/Junkyard | Entered Materials 94 | -10/Materials | Central database locked down 133 | -10/Materials | Discovered new exit (range 3) 294 | -10/Materials | Discovered new exit (range 16) 309 | -10/Materials | Build established: Mutant 362 | -10/Materials | Discovered new exit (range 12) 639 | -10/Materials | Repaired Lgt. Treads 656 | -10/Materials | Discovered new exit (range 16) 754 | -10/Materials | Entered Mines 865 | -10/Mines | A weapon hastily lodged in a ceiling crevice suddenly fell to the ground 995 | -10/Mines | Met a Derelict testing a Signal Generator 1052 | -10/Mines | Assisted by bots powering up and referring to "LRC-V3" 1377 | -10/Mines | Discovered new exit (range 10) 1404 | -10/Mines | Found a hidden stash of uninstalled traps 1927 | -10/Mines | Entered Materials 1927 | -9/Materials | Accompanied by 4 allies 1927 | -9/Materials | Evolved 2 slots: Utility x2 1983 | -9/Materials | Repaired Lgt. Treads 2011 | -9/Materials | Repaired Lgt. Treads 2195 | -9/Materials | Discovered new exit (range 8) 2269 | -9/Materials | Entered Mines 2269 | -9/Mines | Accompanied by 2 allies 2318 | -9/Mines | Assembled infested the area 2369 | -9/Mines | Deemed a non-threat by the Exiles lab entrance 2371 | -9/Mines | Discovered new exit (range 5) 2576 | -9/Mines | Learned Materials security intel 2655 | -9/Mines | Found a damaged Exp. Sensor Array with a note attached 2660 | -9/Mines | Found Prototype Device 2871 | -9/Mines | Discovered new exit (range 15) 3240 | -9/Mines | Entered Exiles 3240 | -9/Exiles | Accompanied by 2 allies 3298 | -9/Exiles | Met 8R-AWN 3341 | -9/Exiles | Met EX-HEX 3420 | -9/Exiles | Met EX-BIN 3447 | -9/Exiles | Aligned with FarCom system 3449 | -9/Exiles | Given EX-Vault access code 3504 | -9/Exiles | Opened EX-Vault 3573 | -9/Exiles | Warned to stay clear of 0b10 Research branches 3675 | -9/Exiles | Warned about trapping Exiles lab 3679 | -9/Exiles | Attacked by the Exiles 3738 | -9/Exiles | Found Prototype Ballistic Gun 3739 | -9/Exiles | Identified 8R-AWN's Boregun 3758 | -9/Exiles | Lost 8 parts (1p2n2u3w) 4084 | -9/Exiles | Found Latent Energy Streamer 4096 | -9/Exiles | Found Army-in-a-Box 4107 | -9/Exiles | Found Deploy-a-Sentry 4111 | -9/Exiles | Found Deploy-a-Sentry 4114 | -9/Exiles | Found Deploy-a-Sentry 5303 | -9/Exiles | Destroyed 8R-AWN 5877 | -9/Exiles | Discovered new exit (range 14) 5906 | -9/Exiles | Identified Exp. Sensor Array 5907 | -9/Exiles | Stole three prototypes: Army-in-a-Box, Latent Energy Streamer, Deploy-a-Sentry 5907 | -9/Exiles | Entered Mines 6711 | -8/Mines | Discovered new exit (range 4) 6780 | -8/Mines | Entered Materials 6780 | -8/Materials | Evolved 2 slots: Propulsion x1, Utility x1 6820 | -8/Materials | Build established: Scavenger-Mutant 6973 | -8/Materials | Lost 4 parts (1p1n1u1w) 7040 | -8/Materials | DAS Turret deployed 7067 | -8/Materials | Lost 3 parts (1p1n1w) 7161 | -8/Materials | Core integrity fell below 50% 7257 | -8/Materials | Repaired Broken Carbon-fiber Leg 7435 | -8/Materials | DAS Turret deployed 7437 | -8/Materials | Core integrity fell below 20% 7445 | -8/Materials | Destroyed by G-47 Trooper with Particle Gun Last Messages --------------- 07424_ Penetrated by Slug. 07425_ Imp. Heat Sink destroyed. 07425_ Critical hit (Burn: +37). 07430_ Slug penetrates Wall. 07430_ Imp. Aluminum Leg destroyed. 07433_ Critical hit (Burn: +37). 07434_ Dropped Deploy-a-Sentry. 07435_ DAS Turret deployed. 07435_ G-47 Trooper destroyed. 07435_ Carbon-fiber Leg destroyed. 07436_ Acquired Assault Cannon. 07437_ Y-45 Defender destroyed. 07438_ K-01 Serf collects debris. 07439_ Imp. Heat Sink destroyed. 07442_ K-01 Serf collects debris. 07442_ Dropped Deploy-a-Sentry. 07442_ S-10 Pest destroyed. 07444_ Hvy. Laser destroyed. 07444_ Critical hit (Burn: +37). 07444_ S-10 Pest destroyed. Map ----- +----------------------------------------------------+ | ?????????????????????????????????????????????????? | | ?????????????????????????????????????????????????? | | ?????????????????????????????????????????????????? | | ?????????????????????????????????????????????????? | | ?????????????????????????????????????????????????? | | ?????????????????????????????????????????????????? | | ?????????????????????????????????????????????????? | | ?????????????????????????????????????????????????? | | ???????????????????????????????######### ??????? | | ??????????????????????????????? #?????? | | ??????????????????????????????? ?????? | | ??????????????????????????????? #?????? | | ???????????????????????????????# #?????? | | ???????????????????????????????# #???### | | ???????????????????????????????# ##### | | ???????????????????????????????# | | ???????????????????????????????# | | ???????????????????????????????# "T | | ???????????????????????????????# | | ???????????????????????????????# * | | ???????????????????????????????# | | ???????????????????????????????# | | ?????????????????????????###???# k | | ???????????????#####+#####;#####h* | | ???????????""" + s*% ] tu ######+######+ | | ???????????????# Y *%=@] #??? ???? | | ???????????????# ### =s[ #?? ???? | | ????????????????????#% #? ?? " | | ????????????????????# * |!!gg # """ """??""" | | ????????????????????# =% [ !!! =# """ """ #""" | | ????????????????????# !=%=! !! g !%+ """ """ #""" | | ????????????????????# !##########%^^# #""" | | ????????????????????#% ?????????# #? ? #??? | | ????????????????????# ?????????# #??###???????? | | ????????????????????# ??????????# k ???????????? | | ????????????????????# ??????????# ???????????? | | ????????????????????#???????????# ??????????? | | ????????????????????????????????####+###?????????? | | ????????????????????????????????????? ???????????? | | ?????????????????????????????????????? ??????????? | | ?????????????????????????????????????? ??????????? | | ???????????????????????????????????????#?????????? | | ?????????????????????????????????????????????????? | | ?????????????????????????????????????????????????? | | ?????????????????????????????????????????????????? | | ?????????????????????????????????????????????????? | | ?????????????????????????????????????????????????? | | ?????????????????????????????????????????????????? | | ?????????????????????????????????????????????????? | | ?????????????????????????????????????????????????? | +----------------------------------------------------+ Best States ------------- Heat Dissipation 59 Energy Generation 18 Energy Capacity 280 Matter Stores 500 Matter Capacity 500 Sight Range 16 Robot Scan Range 20 Terrain Scan Density 10 Additional Mass Support 6 Utility Shielding 33 Evasion (%) 50 Targeting Accuracy 5 Recoil Reduction 2 Item Schematics ----------------- None Robot Schematics ------------------ None Fabricated ------------ Nothing Alien Tech Used ----------------- None Achievements -------------- None Challenges ------------ None Game ------ Seed TransportWardroneFlail Manual? 0 Play Time 00:29:31 Cumulative 73.9 hours Start 2023.10.18 @ 17:35:14 End 2023.10.18 @ 19:12:51 Sessions 3 Manual Loads 0 Difficulty Rogue Special Mode None Game No. 124 Rogue 121 Adventurer 3 Explorer 0 Win Type - Total 0 Types 0/0/0/0/0/0/0/0/0 Lore% 34 Gallery% 51 Achievement% 36 Wizard Run 0 Options --------- ASCII 0 Keyboard 0 Movement Mouse Keybinds 0 Fullscreen 2 Font 18/SmallcapsGlow Map View 76x50 Tactical HUD 1 Map Filters NONE Filters NONE Steam 1 RUN: 0841d878-0247-44eb-93d8-1ae583c3ffe3